Cogmind - Beta 15 @@@ ROGUE MODE // 2025.08.14 @ 05:39:54 Player: shapeshifter Result: Destroyed by 9Z-L81(R) with Subdweller Laser Performance ------------- Evolutions (0) 0 Regions Visited (2) 400 Robots Destroyed (26) 130 Value Destroyed (728) 728 Prototype IDs (11) 220 Alien Tech Used (0) 0 Bonus (-22) -22 TOTAL SCORE: 1456 Bonus ------- Friendly Fire -22 Cogmind --------- Core Integrity 0/250 Matter 278/300 Energy 75/100 System Corruption 2% Temperature Cool (6) Movement Rolling (130) Ox2 Location -10/Subcaves Parts ------- > --- POWER (1) -------- Subdweller Power Source > --- PROPULSION (2) --- Light Treads Subdweller Monowheel > --- UTILITY (2) ------ High-capacity Storage Unit Sensor Array > --- WEAPON (2) ------- Subdweller Machine Gun Subdweller Shrapnel Launcher > --- INVENTORY (20) --- Subdweller Power Source Subdweller Power Source High-capacity Storage Unit Subdweller Optics Subdweller Optics Seismic Detector Core Shielding Hardened Light Armor Plating Hardened Light Armor Plating Scrap Shield Power Bank Subdweller Laser Subdweller Laser Subdweller Laser Grenade Launcher Mining Claw Peak State ------------ > --- POWER ------------ Subdweller Power Source > --- PROPULSION ------- Wheel Compact Wheel > --- UTILITY ---------- High-capacity Storage Unit Hardened Light Armor Plating > --- WEAPON ----------- Heavy Assault Rifle Heavy Battle Rifle > --- INVENTORY -------- Light Treads Spiked Treads Disposable Heat Sink High-capacity Storage Unit Sensor Array Signal Interpreter Seismic Detector Core Shielding Hardened Light Armor Plating Hardened Light Armor Plating Scrap Shield Shield Generator Power Bank Subdweller Laser Light Assault Rifle Light Assault Rifle Grenade Launcher Grenade Launcher Mining Claw [Rating: 16] Favorites ----------- Power Light Ion Engine Engine Light Ion Engine Propulsion Light Treads Treads Light Treads Wheel Compact Wheel Utility High-capacity Storage Unit Device Sensor Array Storage High-capacity Storage Unit Protection Hardened Light Armor Plating Weapon Heavy Assault Rifle Energy Gun Subdweller Laser Ballistic Gun Heavy Assault Rifle Launcher Subdweller Shrapnel Launcher Slashing Weapon Mining Claw Build | -11 -10 -10 ------- Run | Yrd Mat Sub Slots Evolved . | . . . Power . | . . . Propulsion . | . . . Utility . | . . . Weapon . | . . . Parts Attached 31 | 6 13 12 Power 3 | 1 1 1 Engine 3 | 1 1 1 Core . | . . . Reactor . | . . . Propulsion 8 | 2 4 2 Treads 4 | 2 1 1 Leg . | . . . Wheel 4 | . 3 1 Hover . | . . . Flight . | . . . Utility 6 | 1 3 2 Device 1 | . . 1 Storage 2 | 1 1 . Processor . | . . . Hackware . | . . . Protection 3 | . 2 1 Artifact . | . . . Weapon 14 | 2 5 7 Energy Gun 1 | . . 1 Energy Cannon . | . . . Ballistic Gun 11 | 2 4 5 Ballistic Cannon . | . . . Launcher 1 | . . 1 Special Weapon . | . . . Impact Weapon . | . . . Slashing Weapon 1 | . 1 . Piercing Weapon . | . . . Special Melee Weapon . | . . . Unidentified Prototypes . | . . . Parts Lost 7 | . 2 5 Power 1 | . 1 . Propulsion 3 | . 1 2 Utility . | . . . Weapon 3 | . . 3 Highest Loss Streak 3 | . 1 3 To Critical Strikes . | . . . Average Backups 16 | 3 15 18 Power . | . . 1 Propulsion 1 | 1 1 1 Utility 7 | . 6 9 Weapon 6 | . 6 6 Tool/Special . | . . . Unused Backups 23 | . 2 21 Power 2 | . . 2 Propulsion 1 | . . 1 Utility 13 | . 1 12 Weapon 7 | . 1 6 Tool/Special . | . . . Average Slot Usage (%) 98 | . 98 98 Engine 14 | . 14 14 Treads 19 | . 22 16 Wheel 7 | . 5 11 Device 3 | . . 7 Storage 14 | . 14 14 Protection 10 | . 12 6 Ballistic Gun 27 | . 27 26 Peak Build Rating 16 | 6 12 16 Average Rating 11 | 4 10 14 On Entrance 6 | . 6 12 Naked Turns . | . . . Heaviest Build 57 | 10 54 57 Greatest Support 40 | 40 40 40 Greatest Overweight (x) 5 | . 3 5 Average Overweight (x) 1 | . . 1 Largest Inventory Capacity 20 | 8 20 20 Average Capacity 18 | 7 17 20 Most Carried 20 | 4 20 20 Average Carried 16 | 3 15 19 Final Capacity 20 | 8 20 20 Final Carried 19 | 4 19 17 Class Distribution -------------------- 100% | Mutant Dominant Class ---------------- Mutant | -10/Materials Mutant | -10/Subcaves Resources | -11 -10 -10 ----------- Run | Yrd Mat Sub Matter Collected 1083 | 174 432 477 Remotely . | . . . Salvage Created 1023 | . 649 374 Parts 66 | . 40 26 Haulers Intercepted . | . . . Recyclers Shooed 1 | . 1 . Parts Field Recycled . | . . . Retrieved Matter . | . . . Parts Self-Destructed 10 | . . 10 Prevented . | . . . Kills | -11 -10 -10 ------- Run | Yrd Mat Sub Combat Hostiles Destroyed 22 | . 14 8 Guns 22 | . 14 8 Classes Destroyed 6 | . 5 1 Tunneler 1 | . 1 . Recycler 1 | . 1 . Watcher 2 | . 2 . Swarmer 6 | . 3 3 Grunt 11 | . 11 . Subdweller 5 | . . 5 Best Kill Streak 5 | . 5 3 Combat Bots Only 5 | . 5 3 Max Kills in Single Turn 2 | . 1 2 Gunslinging . | . . . Exploded . | . . . Melee . | . . . Uniques/NPCs Destroyed . | . . . Combat | -11 -10 -10 -------- Run | Yrd Mat Sub Hostile Shots Fired 166 | . 81 85 Missed 48 | . 20 28 Hits 118 | . 61 57 Projectile 118 | . 61 57 Critical Strikes 4 | . 1 3 Damage Taken 1735 | . 743 992 Core 259 | . 83 176 Absorbed by Shields . | . . . Redirected to Shielding 15 | . 15 . Core Remaining (%) 100 | 100 . . Volleys Fired 119 | . 63 56 Largest 2 | . 2 2 Hottest 70 | . 46 70 Shots Fired 218 | . 126 92 Gun 217 | . 126 91 Cannon . | . . . Launcher 1 | . . 1 Special . | . . . Kinetic 218 | . 126 92 Thermal . | . . . Explosive . | . . . Electromagnetic . | . . . Robot Hit Streak 29 | . 11 29 Robot Miss Streak 6 | . 4 6 Penetration Max . | . . . Secondary Targets . | . . . Shots Hit Robots 147 | . 76 71 Core Hits 57 | . 34 23 Critical Kills . | . . . Critical Parts Destroyed . | . . . Critical Strikes 1 | . . 1 Destroy 1 | . . 1 Melee Attacks 6 | . 4 2 Impact . | . . . Slashing 6 | . 4 2 Piercing . | . . . Sneak Attacks . | . . . Combat Hostiles . | . . . Follow-up Attacks . | . . . Damage Inflicted 2128 | . 916 1212 Guns 2061 | . 916 1145 Cannons . | . . . Explosions 67 | . . 67 Melee . | . . . Ramming . | . . . Kinetic 2128 | . 916 1212 Thermal . | . . . Explosive . | . . . Electromagnetic . | . . . Impact . | . . . Slashing . | . . . Piercing . | . . . Highest Corruption 2 | . 2 2 Average Corruption 2 | . 2 2 Corruption Purged . | . . . Corruption Blocked . | . . . Effects 22 | . 8 14 Message Errors 8 | . 3 5 Matter Fused 7 | . 3 4 Energy Discharges 1 | . 1 . Parts Rejected 1 | . 1 . Data Loss (minor) 2 | . . 2 Misfires 1 | . . 1 Weapon Failures 2 | . . 2 Overload Shots . | . . . Overflow Damage . | . . . Projectiles . | . . . Explosions . | . . . Melee . | . . . Knockbacks . | . . . Impact . | . . . Kinetic . | . . . Secondary . | . . . Self-Inflicted Damage 57 | . . 57 Shots 1 | . . 1 Rammed . | . . . Targets Rammed . | . . . Kicked . | . . . Crushed . | . . . Highest Temperature 63 | . 63 . Average Temperature 20 | . 20 . Received Heat Transfer 477 | . 336 141 Siege Activations . | . . . Martial Activations . | . . . Shielding Activations . | . . . Robots Disrupted . | . . . Combat Hostiles . | . . . Robots Corrupted . | . . . Combat Hostiles . | . . . Parts Fried . | . . . Impact Corruptions . | . . . Robots Melted . | . . . Combat Hostiles . | . . . Parts Melted 1 | . . 1 Heat Transferred . | . . . Parts Sabotaged . | . . . Parts Stolen . | . . . Parts Stripped . | . . . Power Chain Reactions . | . . . Alert | -11 -10 -10 ------- Run | Yrd Mat Sub Maximum Alert Level . | . . . Low Security (%) 100 | 100 100 . Level 1 . | . . . Level 2 . | . . . Level 3 . | . . . Level 4 . | . . . Level 5 . | . . . High Security . | . . . Max Security . | . . . Peak Influence 111 | . 111 . Initial . | . . . Average 25 | . 26 . Influence Increases 486 | . 416 70 Destroy 0b10 Robot/C 340 | . 280 60 Destroy 0b10 Robot/NC 20 | . 20 . Destroy Leader 64 | . 54 10 Successful Hack 16 | . 16 . Disable Machine 15 | . 15 . Destroy Structure 1 | . 1 . Lose Combat Pursuer 30 | . 30 . Influence Decreases 486 | . 377 109 Entered New Map 19 | . . 19 Time Decay 447 | . 357 90 Lost Part 20 | . 20 . Squads Dispatched 1 | . 1 . Investigation . | . . . Extermination . | . . . Reinforcement 1 | . 1 . Assault . | . . . Garrison . | . . . Intercept . | . . . Searches Triggered . | . . . Construction Impeded . | . . . Haulers Reinforced . | . . . Active Scanning Responses . | . . . Cargo Convoy Interrupts . | . . . Stealth | -11 -10 -10 --------- Run | Yrd Mat Sub Distress Signals . | . . . Communications Jammed . | . . . Distress Signals . | . . . Times Spotted 36 | . 26 10 Peak Tracking Total 4 | . 4 3 Tactical Retreats 2 | . 2 . Traps | -11 -10 -10 ------- Run | Yrd Mat Sub Traps Triggered 4 | . 2 2 Indirectly . | . . . Trap Hack Attempts . | . . . Triggered . | . . . Disarmed . | . . . Reprogrammed . | . . . Reused . | . . . Traps Extracted . | . . . Installed . | . . . Triggered . | . . . Machines | -11 -10 -10 ---------- Run | Yrd Mat Sub Machines Disabled 2 | . 1 1 Max in Single Turn 1 | . 1 1 Machines Repaired . | . . . Machines Dismantled . | . . . Machines Sabotaged . | . . . Overloaded Fab Kills . | . . . Hacking | -11 -10 -10 --------- Run | Yrd Mat Sub Machines Accessed 7 | . 6 1 Terminals 5 | . 5 . Fabricators . | . . . Repair Stations . | . . . Recycling Units 1 | . 1 . Scanalyzers . | . . . Garrison Access . | . . . Total Hacks 27 | . 18 9 Successful 16 | . 7 9 Failed 11 | . 11 . Catastrophic 2 | . 2 . Database Lockouts . | . . . Manual 16 | . 16 . Terminals 16 | . 16 . Fabricators . | . . . Repair Stations . | . . . Recycling Units 2 | . 2 . Scanalyzers . | . . . Garrison Access . | . . . Terminal Hacks 11 | . 2 9 Record 8 | . . 8 Registered Components 1 | . 1 . Zone Layout 1 | . 1 . Proto ID Catalog 1 | . . 1 Fabricator Hacks . | . . . Repair Station Hacks . | . . . Recycling Unit Hacks 2 | . 2 . Report Inventory 1 | . 1 . Retrieve Components 1 | . 1 . Scanalyzer . | . . . Garrison Access Hacks . | . . . Unauthorized Hacks 3 | . 3 . Terminals 3 | . 3 . Botnet 3 | . 3 . Fabricators . | . . . Repair Stations . | . . . Recycling Units . | . . . Scanalyzers . | . . . Garrison Access . | . . . Data Cores Recovered . | . . . Used . | . . . Hacking Detections 6 | . 6 . Full Trace Events 1 | . 1 . Feedback Events . | . . . Feedback Blocked . | . . . Robot Schematics Acquired . | . . . Robots Built . | . . . Authchips . | . . . Time . | . . . Total Robot Build Rating . | . . . Part Schematics Acquired . | . . . Parts Built . | . . . Authchips . | . . . Time . | . . . Total Part Build Rating . | . . . Parts Repaired . | . . . Time . | . . . Parts Recycled . | . . . Recycled Matter . | . . . Retrieved Matter . | . . . Retrieved Components 2 | . 2 . Parts Scanalyzed . | . . . Part Schematics Acquired . | . . . Parts Damaged . | . . . Bothacking | -11 -10 -10 ------------ Run | Yrd Mat Sub Used RIF Installer . | . . . Robots Hacked . | . . . Non-combat . | . . . Combat . | . . . Robot Hacks Applied . | . . . Relay Couplers Released . | . . . Fabnet Peak Effective % . | . . . Robots Rewired . | . . . Allies Hacked . | . . . Hacks Repelled . | . . . Allies | -11 -10 -10 -------- Run | Yrd Mat Sub Total Allies . | . . . Largest Group . | . . . Highest-Rated Group . | . . . Highest-Rated Ally . | . . . Total Orders . | . . . Ally Attacks . | . . . Total Damage . | . . . Kills . | . . . Allies Corrupted . | . . . Allies Melted . | . . . Intel | -11 -10 -10 ------- Run | Yrd Mat Sub Active Infowar (turns) 611 | . . 611 Sensors 611 | . . 611 Robot Analysis Total . | . . . Derelict Logs Recovered 1 | . . 1 Drone Launches . | . . . Drone Recoveries . | . . . Exploration | -11 -10 -10 ------------- Run | Yrd Mat Sub Turns Passed 2884 | 80 1604 1200 Spaces Moved 1281 | 48 684 549 Core 11 | 11 . . Treads 751 | 37 465 249 Legs . | . . . Wheels 519 | . 219 300 Hover . | . . . Flight . | . . . Fastest Speed 50 | 50 105 120 Average Speed 178 | 134 180 179 Slowest Speed 250 | 160 240 250 Overloaded Moves . | . . . Propulsion Burnouts . | . . . Robots Hopped . | . . . Potential Cave-ins . | . . . Cave-ins Triggered . | . . . Exploration Rate (%) 42 | 3 92 31 Regions Visited 2 Branch Regions 1 Pre-discovered Areas . | . . . Known Exits Taken . | . . . Unknown Exits Taken 2 | 1 1 . Scrap Searched 5 | . . 5 Spaces Dug 1 | . 1 . Terrain Destroyed 9 | . 1 8 Melee 1 | . 1 . Projectile . | . . . AOE 8 | . . 8 Terrain Rammed . | . . . Walls Destroyed . | . . . Machines Disabled . | . . . Actions | -11 -10 -10 --------- Run | Yrd Mat Sub Total 1668 | 63 932 673 Wait 146 | . 129 17 Move 1279 | 47 683 549 Hop . | . . . Pick Up 55 | 10 28 17 Fast Attach . | . . . Attach 18 | 6 5 7 Detach . | . . . Swap 21 | . 12 9 Drop 24 | . 8 16 Fire 119 | . 63 56 Melee 6 | . 4 2 Ram . | . . . Kick . | . . . Crush . | . . . Escape Stasis . | . . . Rewire . | . . . Trap . | . . . Miscellaneous . | . . . Route ------- -11/Scrapyard -10/Materials (discovered 5 exits: [*Mat x3] / [*Min] / *Sub) -10/Subcaves History --------- Turn | Location | Event 37 | -11/Scrapyard | Discovered new exit (range 16) 81 | -11/Scrapyard | Entered Materials 301 | -10/Materials | Build established: Mutant 767 | -10/Materials | Discovered new exit (range 15) 914 | -10/Materials | Discovered new exit (range 8) 1179 | -10/Materials | Discovered new exit (range 6) 1540 | -10/Materials | Discovered new exit (range 5) 1679 | -10/Materials | Discovered new exit (range 4) 1685 | -10/Materials | Entered Subcaves 1686 | -10/Subcaves | Approached by a straggling Scientist 1812 | -10/Subcaves | Visited 4L-MR0's lab 1827 | -10/Subcaves | Found Power Bank 1931 | -10/Subcaves | Core integrity fell below 50% 2134 | -10/Subcaves | Disturbed a concealed Subdweller 2202 | -10/Subcaves | Lost 3 parts (1n2w) 2857 | -10/Subcaves | Disturbed a concealed Subdweller 2858 | -10/Subcaves | Core integrity fell below 20% 2883 | -10/Subcaves | Disturbed a concealed Subdweller 2885 | -10/Subcaves | Destroyed by 9Z-L81(R) with Subdweller Laser Last Messages --------------- powers down. 02851_ 2N-DJ8(R) suffers critical hit (Destroy). 02856_ Sub. Machine Gun destroyed. 02857_ 4I-4N3(R) angrily emerges from the Twisted Machinery. 02857_ 2N-DJ8(R) destroyed. 02859_ Acquired 39 matter. 02865_ 4I-4N3(R) affixes Scrap Shield Fragment to Scrap Shield. 02874_ 4I-4N3(R) destroyed. 02876_ 9Q-AU5(R) affixes Scrap Shield Fragment to Scrap Shield. 02876_ Acquired 14 matter. 02877_ Spk. Treads destroyed. 02880_ Acquired 2 matter. 02880_ 9Q-AU5(R) affixes Scrap Shield Fragment to Scrap Shield. 02882_ Acquired 10 matter. 02883_ 9Z-L81(R) angrily emerges from the Twisted Machinery. Map ----- +----------------------------------------------------+ | ??????????????????????????????????????????????#"" | | ??????????????????????????????????????????????#"X | | ??????????????????????????????????????????????#"" | | ??????????????????????????????????????????????#" | | ??????????????????????????????????????????????## | | ??????????????????????????????????????????????# "# | | ??????????????????????????????????????????????# # | | ??????????????????????????????????????????????#### | | ?????????????????????????????????????????????????? | | ?????????????????????????????????????????????????? | | ?????????????????????????????????????????????????? | | ?????????????????????????????????????????????????? | | ?????????????????????????????????????????????????? | | ?????????????????????????????????????????????????? | | ?????????????????????????????????????????????????? | | ????????????????????????????????????????#### ???? | | ???????????????????????????????????????? ??? | | ???????????????????????????????????###?? ??? | | ???????????????????????????????????# ### ??? | | ???????????????????????????????????# ???? | | ???????????????????######??????????# ????? | | ??????????????## ### ########???# ?????? | | ????????? " ;;;; #???# ???????? | | ????????? " ### =& ##?## #????????? | | ?????????# " ????# * ### #????????? | | ???????????????????#$ $ R@;# ## #????????? | | ?????????????????# $R ;# ## #???###???? | | ?????????????????# # $ !;# ##?## ##??? | | ????????????????? ;## ### #?## | | ??????????????? ### ## ### | | ??????????????### #?########## ## | | ????????????????## ??????????##### | | ?????????????????## ??????????????# | | ??????????????????## ?????????????# ## | | ???????????????????###### #?????????????## ##### | | ?????????????????????????#???????????????#####???? | | ?????????????????????????????????????????????????? | | ?????????????????????????????????????????????????? | | ?????????????????????????????????????????????????? | | ?????????????????????????????????????????????????? | | ?????????????????????????????????????????????????? | | ?????????????????????????????????????????????????? | | ?????????????????????????????????????????????????? | | ?????????????????????????????????????????????????? | | ?????????????????????????????????????????????????? | | ?????????????????????????????????????????????????? | | ?????????????????????????????????????????????????? | | ?????????????????????????????????????????????????? | | ?????????????????????????????????????????????????? | | ?????????????????????????????????????????????????? | +----------------------------------------------------+ Best States ------------- Heat Dissipation 25 Energy Generation 15 Energy Capacity 200 Matter Stores 300 Matter Capacity 300 Sight Range 16 Robot Scan Range 14 Terrain Scan Density 10 Armor Coverage 150 Core Shielding 20 Evasion (%) 50 Recoil Reduction 2 Item Schematics ----------------- None Robot Schematics ------------------ None Fabricated ------------ Nothing Repaired ---------- Nothing Alien Tech Used ----------------- None Achievements -------------- None Challenges ------------ None Game ------ Seed CorruptionDeliveryFalx Manual? 0 Play Time 00:14:13 Cumulative 142.1 hours Start 2025.08.14 @ 05:27:30 End 2025.08.14 @ 05:39:54 Sessions 1 Manual Loads 0 Difficulty Rogue Special Mode None Game No. 243 Rogue 243 Adventurer 0 Explorer 0 Win Type - Total 2 Types 1/0/1/0/0/0/0/0/0/0 Lore% 74 Gallery% 70 Achievement% 51 Wizard Run 0 Options --------- Layout 1 ASCII 0 Keyboard 0 Movement Mouse Keybinds 0 Fullscreen 1 Font 32/SmallcapsGlow Map View 50x35 Zoom Use 0% Tactical HUD 1 Map Filters NONE Filters NONE Steam 1 RUN: 6ecfcd8a-ca1f-435d-86cf-a72e47fed7cb